[Event "FIDE Grand Swiss 2023"]
[Site "Villa Marina, Douglas, Isle of Man"]
[Date "2023.10.30"]
[Round "6.10"]
[White "Zhalmakhanov, Ramazan"]
[Black "Giri, Anish"]
[Result "1/2-1/2"]
[WhiteElo "2447"]
[BlackElo "2760"]
[EventDate "2023.10.25"]
[ECO "B11"]
[PlyCount "160"]
[BlackFideId "24116068"]
[TimeControl "40/100 + 20/50 + 15 + 30s/move"]
[WhiteFideId "13706357"]

1.e4 {[%clk 01:40:57] [%emt 00:00:03]} 1...c6 {[%clk 01:40:55] [%emt 00:00:04]} 
2.Nc3 {[%clk 01:40:24] [%emt 00:01:05]} 2...d5 {[%clk 01:41:05] [%emt 00:00:20]} 
3.Nf3 {[%clk 01:40:35] [%emt 00:00:19]} 3...Bg4 {[%clk 01:41:10] [%emt
00:00:25]} 4.h3 {[%clk 01:40:46] [%emt 00:00:19]} 4...Bxf3 {[%clk 01:41:34]
[%emt 00:00:06]} 5.Qxf3 {[%clk 01:41:10] [%emt 00:00:06]} 5...e6 {[%clk
01:41:39] [%emt 00:00:25]} 6.d4 {[%clk 01:37:44] [%emt 00:03:56]} 6...Nf6 
{[%clk 01:37:42] [%emt 00:04:27]} 7.Bg5 {[%clk 01:14:13] [%emt 00:24:02]} 
7...Be7 {[%clk 01:35:28] [%emt 00:02:44]} 8.O-O-O {[%clk 01:12:41] [%emt
00:02:01]} 8...Nxe4 {[%clk 01:27:56] [%emt 00:08:02]} 9.Bxe7 {[%clk 01:12:05]
[%emt 00:01:06]} 9...Qxe7 {[%clk 01:28:23] [%emt 00:00:03]} 10.Nxe4 {[%clk
01:12:27] [%emt 00:00:08]} 10...dxe4 {[%clk 01:28:50] [%emt 00:00:04]} 11.Qxe4 
{[%clk 01:12:51] [%emt 00:00:05]} 11...Nd7 {[%clk 01:29:14] [%emt 00:00:06]} 
12.Bd3 {[%clk 01:09:11] [%emt 00:04:11]} 12...Nf6 {[%clk 01:27:06] [%emt
00:02:37]} 13.Qh4 {[%clk 01:07:35] [%emt 00:02:05]} 13...h6 {[%clk 01:26:55]
[%emt 00:00:42]} 14.Rhe1 {[%clk 01:07:24] [%emt 00:00:41]} 14...Rd8 {[%clk
01:21:29] [%emt 00:05:56]} 15.c3 {[%clk 01:04:52] [%emt 00:03:02]} 15...O-O 
{[%clk 01:20:58] [%emt 00:01:00]} 16.Re5 {[%clk 01:01:59] [%emt 00:03:24]} 
16...Rfe8 {[%clk 01:17:16] [%emt 00:04:12]} 17.f4 {[%clk 01:00:51] [%emt
00:01:39]} 17...Nd7 {[%clk 01:01:00] [%emt 00:16:45]} 18.Qxe7 {[%clk 01:00:43]
[%emt 00:00:38]} 18...Rxe7 {[%clk 01:01:28] [%emt 00:00:03]} 19.Re3 {[%clk
00:59:13] [%emt 00:01:59]} 19...Kf8 {[%clk 00:59:21] [%emt 00:02:37]} 20.Rde1 
{[%clk 00:58:22] [%emt 00:01:21]} 20...Ree8 {[%clk 00:57:03] [%emt 00:02:48]} 
21.Be4 {[%clk 00:55:33] [%emt 00:03:19]} 21...Nb6 {[%clk 00:53:52] [%emt
00:03:42]} 22.Kc2 {[%clk 00:52:57] [%emt 00:03:05]} 22...g6 {[%clk 00:49:37]
[%emt 00:04:45]} 23.Bf3 {[%clk 00:50:32] [%emt 00:02:56]} 23...Nc4 {[%clk
00:49:02] [%emt 00:01:05]} 24.R3e2 {[%clk 00:50:33] [%emt 00:00:28]} 24...h5 
{[%clk 00:48:32] [%emt 00:01:00]} 25.g3 {[%clk 00:45:45] [%emt 00:05:19]} 
25...Kg7 {[%clk 00:41:03] [%emt 00:07:58]} 26.Be4 {[%clk 00:42:17] [%emt
00:03:59]} 26...Rh8 {[%clk 00:40:32] [%emt 00:01:00]} 27.Bd3 {[%clk 00:41:59]
[%emt 00:00:48]} 27...Nb6 {[%clk 00:39:57] [%emt 00:01:05]} 28.h4 {[%clk
00:40:41] [%emt 00:01:49]} 28...Rd5 {[%clk 00:35:57] [%emt 00:04:28]} 29.Be4 
{[%clk 00:40:07] [%emt 00:01:06]} 29...Rd6 {[%clk 00:36:09] [%emt 00:00:18]} 
30.Bf3 {[%clk 00:38:00] [%emt 00:02:37]} 30...a5 {[%clk 00:32:19] [%emt
00:04:20]} 31.b3 {[%clk 00:36:44] [%emt 00:01:46]} 31...Ra8 {[%clk 00:30:26]
[%emt 00:02:23]} 32.Re5 {[%clk 00:36:28] [%emt 00:00:46]} 32...Nd7 {[%clk
00:30:39] [%emt 00:00:16]} 33.R5e3 {[%clk 00:36:35] [%emt 00:00:23]} 33...Kf8 
{[%clk 00:23:20] [%emt 00:07:49]} 34.Rd3 {[%clk 00:34:51] [%emt 00:02:15]} 
34...Rd8 {[%clk 00:22:50] [%emt 00:01:00]} 35.Red1 {[%clk 00:34:27] [%emt
00:00:54]} 35...Nf6 {[%clk 00:20:17] [%emt 00:03:03]} 36.c4 {[%clk 00:32:52]
[%emt 00:02:06]} 36...Ng8 {[%clk 00:19:27] [%emt 00:01:19]} 37.Kc3 {[%clk
00:31:43] [%emt 00:01:39]} 37...Ne7 {[%clk 00:19:40] [%emt 00:00:17]} 38.Be4 
{[%clk 00:30:07] [%emt 00:02:06]} 38...Ke8 {[%clk 00:13:54] [%emt 00:06:15]} 
39.a4 {[%clk 00:23:22] [%emt 00:07:16]} 39...Rc8 {[%clk 00:06:38] [%emt
00:07:46]} 40.b4 {[%clk 00:20:41] [%emt 00:03:11]} 40...axb4+ {[%clk 00:05:32]
[%emt 00:01:36]} 41.Kxb4 {[%clk 00:21:10] [%emt 00:00:02]} 41...Ra8 {[%clk
00:05:23] [%emt 00:00:39]} 42.a5 {[%clk 00:18:14] [%emt 00:03:26]} 42...Ra6 
{[%clk 00:00:43] [%emt 00:05:10]} 43.Ra3 {[%clk 00:47:13] [%emt 00:21:32]} 
43...Kd8 {[%clk 00:49:20] [%emt 00:01:52]} 44.Kc5 {[%clk 00:39:22] [%emt
00:08:21]} 44...Kc7 {[%clk 00:39:41] [%emt 00:10:09]} 45.Rb1 {[%clk 00:38:58]
[%emt 00:00:54]} 45...Rd8 {[%clk 00:39:42] [%emt 00:00:29]} 46.Rb6 {[%clk
00:38:49] [%emt 00:00:39]} 46...Rda8 {[%clk 00:39:04] [%emt 00:01:08]} 47.Rxa6 
{[%clk 00:35:02] [%emt 00:04:17]} 47...Rxa6 {[%clk 00:39:31] [%emt 00:00:03]} 
48.Kb4 {[%clk 00:27:03] [%emt 00:08:30]} 48...Ra8 {[%clk 00:36:25] [%emt
00:03:35]} 49.Ra1 {[%clk 00:23:53] [%emt 00:03:40]} 49...Ng8 {[%clk 00:32:11]
[%emt 00:04:44]} 50.Ra3 {[%clk 00:22:22] [%emt 00:02:01]} 50...Nf6 {[%clk
00:25:57] [%emt 00:06:44]} 51.Bf3 {[%clk 00:22:32] [%emt 00:00:20]} 51...Kd6 
{[%clk 00:25:17] [%emt 00:01:11]} 52.Rd3 {[%clk 00:21:21] [%emt 00:01:41]} 
52...Ra6 {[%clk 00:25:11] [%emt 00:00:37]} 53.Rd1 {[%clk 00:19:30] [%emt
00:02:20]} 53...Ra8 {[%clk 00:21:56] [%emt 00:03:45]} 54.Rd3 {[%clk 00:19:07]
[%emt 00:00:52]} 54...Rb8 {[%clk 00:21:50] [%emt 00:00:37]} 55.Ra3 {[%clk
00:18:41] [%emt 00:00:56]} 55...Nd7 {[%clk 00:21:51] [%emt 00:00:28]} 56.Kc3 
{[%clk 00:17:37] [%emt 00:01:35]} 56...Ra8 {[%clk 00:22:03] [%emt 00:00:18]} 
57.Kb4 {[%clk 00:17:20] [%emt 00:00:48]} 57...Ra6 {[%clk 00:20:55] [%emt
00:01:38]} 58.Rd3 {[%clk 00:16:17] [%emt 00:01:33]} 58...Nf6 {[%clk 00:19:06]
[%emt 00:02:19]} 59.Rd1 {[%clk 00:14:14] [%emt 00:02:33]} 59...Kc7 {[%clk
00:18:32] [%emt 00:01:04]} 60.Ra1 {[%clk 00:11:18] [%emt 00:03:26]} 60...Ra8 
{[%clk 00:16:32] [%emt 00:02:30]} 61.Ra3 {[%clk 00:11:05] [%emt 00:00:43]} 
61...Kd6 {[%clk 00:16:40] [%emt 00:00:21]} 62.Rd3 {[%clk 00:10:51] [%emt
00:00:44]} 62...Rc8 {[%clk 00:16:28] [%emt 00:00:43]} 63.Ra3 {[%clk 00:10:47]
[%emt 00:00:35]} 63...Rb8 {[%clk 00:16:41] [%emt 00:00:17]} 64.Kc3 {[%clk
00:10:26] [%emt 00:00:51]} 64...Ra8 {[%clk 00:16:50] [%emt 00:00:21]} 65.Kb4 
{[%clk 00:10:38] [%emt 00:00:18]} 65...Ne8 {[%clk 00:16:17] [%emt 00:01:02]} 
66.Ra1 {[%clk 00:09:14] [%emt 00:01:55]} 66...Nf6 {[%clk 00:11:45] [%emt
00:05:01]} 67.Ra3 {[%clk 00:09:24] [%emt 00:00:21]} 67...Ng8 {[%clk 00:12:09]
[%emt 00:00:06]} 68.Be4 {[%clk 00:09:15] [%emt 00:00:39]} 68...Ne7 {[%clk
00:12:14] [%emt 00:00:23]} 69.Rd3 {[%clk 00:08:18] [%emt 00:01:28]} 69...Ra6 
{[%clk 00:12:14] [%emt 00:00:30]} 70.Ra3 {[%clk 00:08:25] [%emt 00:00:24]} 
70...Kc7 {[%clk 00:12:18] [%emt 00:00:26]} 71.Kc3 {[%clk 00:08:11] [%emt
00:00:44]} 71...Ra8 {[%clk 00:06:09] [%emt 00:06:39]} 72.Ra1 {[%clk 00:07:49]
[%emt 00:00:53]} 72...Kd6 {[%clk 00:06:24] [%emt 00:00:14]} 73.Rb1 {[%clk
00:06:30] [%emt 00:01:49]} 73...Kc7 {[%clk 00:06:15] [%emt 00:00:38]} 74.Ra1 
{[%clk 00:06:48] [%emt 00:00:13]} 74...Ra7 {[%clk 00:06:17] [%emt 00:00:28]} 
75.Kb4 {[%clk 00:06:51] [%emt 00:00:27]} 75...Kd6 {[%clk 00:06:15] [%emt
00:00:31]} 76.Ra3 {[%clk 00:06:57] [%emt 00:00:25]} 76...Ra8 {[%clk 00:06:32]
[%emt 00:00:13]} 77.Rb3 {[%clk 00:06:01] [%emt 00:01:26]} 77...Kc7 {[%clk
00:06:45] [%emt 00:00:17]} 78.Ra3 {[%clk 00:06:14] [%emt 00:00:17]} 78...Ra6 
{[%clk 00:06:56] [%emt 00:00:19]} 79.Kc3 {[%clk 00:06:21] [%emt 00:00:23]} 
79...Ra8 {[%clk 00:06:12] [%emt 00:01:14]} 80.Kb4 {[%clk 00:06:29] [%emt
00:00:21]} 80...Kd6 {[%clk 00:06:28] [%emt 00:00:15]} 1/2-1/2

[Event "FIDE Grand Swiss 2023"]
[Site "Villa Marina, Douglas, Isle of Man"]
[Date "2023.10.30"]
[Round "6.11"]
[White "Shirov, Alexei"]
[Black "Rapport, Richard"]
[Result "1/2-1/2"]
[WhiteElo "2655"]
[BlackElo "2752"]
[EventDate "2023.10.25"]
[ECO "B33"]
[PlyCount "41"]
[BlackFideId "738590"]
[TimeControl "40/100 + 20/50 + 15 + 30s/move"]
[WhiteFideId "2209390"]

1.e4 {[%clk 01:40:58]} 1...c5 {[%clk 01:40:02] [%emt 00:00:59]} 2.Nf3 {[%clk
01:41:22] [%emt 00:00:06]} 2...Nc6 {[%clk 01:40:17] [%emt 00:00:14]} 3.d4 
{[%clk 01:41:29] [%emt 00:00:22]} 3...cxd4 {[%clk 01:40:40] [%emt 00:00:08]} 
4.Nxd4 {[%clk 01:41:56] [%emt 00:00:04]} 4...Nf6 {[%clk 01:41:01] [%emt
00:00:09]} 5.Nc3 {[%clk 01:42:22] [%emt 00:00:04]} 5...e5 {[%clk 01:41:23] [%emt
00:00:07]} 6.Ndb5 {[%clk 01:42:45] [%emt 00:00:07]} 6...d6 {[%clk 01:41:47]
[%emt 00:00:07]} 7.Bg5 {[%clk 01:39:43] [%emt 00:03:32]} 7...a6 {[%clk 01:42:04]
[%emt 00:00:14]} 8.Na3 {[%clk 01:40:08] [%emt 00:00:04]} 8...b5 {[%clk 01:42:27]
[%emt 00:00:06]} 9.Nd5 {[%clk 01:40:34] [%emt 00:00:04]} 9...Be7 {[%clk
01:42:47] [%emt 00:00:11]} 10.Bxf6 {[%clk 01:40:44] [%emt 00:00:19]} 10...Bxf6 
{[%clk 01:43:10] [%emt 00:00:07]} 11.c3 {[%clk 01:41:01] [%emt 00:00:14]} 
11...Rb8 {[%clk 01:43:20] [%emt 00:00:19]} 12.Nc2 {[%clk 01:41:17] [%emt
00:00:14]} 12...Bg5 {[%clk 01:43:36] [%emt 00:00:14]} 13.a4 {[%clk 01:38:10]
[%emt 00:03:37]} 13...bxa4 {[%clk 01:42:28] [%emt 00:01:40]} 14.Ncb4 {[%clk
01:38:36] [%emt 00:00:03]} 14...Nxb4 {[%clk 01:41:05] [%emt 00:01:53]} 15.cxb4 
{[%clk 01:38:50] [%emt 00:00:16]} 15...Bd7 {[%clk 01:39:37] [%emt 00:01:58]} 
16.Bxa6 {[%clk 01:38:41] [%emt 00:00:39]} 16...O-O {[%clk 01:39:58] [%emt
00:00:08]} 17.O-O {[%clk 01:38:46] [%emt 00:00:24]} 17...Qe8 {[%clk 01:40:10]
[%emt 00:00:20]} 18.Nc7 {[%clk 01:33:43] [%emt 00:05:34]} 18...Qd8 {[%clk
01:38:12] [%emt 00:02:27]} 19.Nd5 {[%clk 01:34:05] [%emt 00:00:07]} 19...Qe8 
{[%clk 01:38:39] [%emt 00:00:04]} 20.Nc7 {[%clk 01:34:26] [%emt 00:00:08]} 
20...Qd8 {[%clk 01:39:07] [%emt 00:00:03]} 21.Nd5 {[%emt 00:00:51]} 1/2-1/2

[Event "FIDE Grand Swiss 2023"]
[Site "Villa Marina, Douglas, Isle of Man"]
[Date "2023.10.30"]
[Round "6.12"]
[White "Yilmaz, Mustafa"]
[Black "Duda, Jan-Krzysztof"]
[Result "1/2-1/2"]
[WhiteElo "2640"]
[BlackElo "2726"]
[EventDate "2023.10.25"]
[ECO "D41"]
[PlyCount "66"]
[BlackFideId "1170546"]
[TimeControl "40/100 + 20/50 + 15 + 30s/move"]
[WhiteFideId "6302718"]

1.d4 {[%clk 01:40:57] [%emt 00:00:03]} 1...Nf6 {[%clk 01:40:55] [%emt 00:00:06]} 
2.c4 {[%clk 01:41:22] [%emt 00:00:04]} 2...e6 {[%clk 01:41:21] [%emt 00:00:04]} 
3.Nf3 {[%clk 01:41:47] [%emt 00:00:05]} 3...d5 {[%clk 01:41:46] [%emt 00:00:06]} 
4.Nc3 {[%clk 01:42:13] [%emt 00:00:04]} 4...c5 {[%clk 01:42:11] [%emt 00:00:05]} 
5.cxd5 {[%clk 01:41:30] [%emt 00:01:13]} 5...cxd4 {[%clk 01:42:35] [%emt
00:00:06]} 6.Qxd4 {[%clk 01:40:46] [%emt 00:01:13]} 6...exd5 {[%clk 01:42:59]
[%emt 00:00:07]} 7.e4 {[%clk 01:41:10] [%emt 00:00:06]} 7...dxe4 {[%clk
01:43:21] [%emt 00:00:08]} 8.Qxd8+ {[%clk 01:41:34] [%emt 00:00:05]} 8...Kxd8 
{[%clk 01:43:45] [%emt 00:00:06]} 9.Ng5 {[%clk 01:41:59] [%emt 00:00:05]} 
9...Be6 {[%clk 01:44:10] [%emt 00:00:05]} 10.Nxe6+ {[%clk 01:41:00] [%emt
00:01:30]} 10...fxe6 {[%clk 01:44:36] [%emt 00:00:04]} 11.Bg5 {[%clk 01:41:23]
[%emt 00:00:06]} 11...h6 {[%clk 01:45:01] [%emt 00:00:05]} 12.O-O-O+ {[%clk
01:40:04] [%emt 00:01:49]} 12...Ke7 {[%clk 01:45:27] [%emt 00:00:05]} 13.Bxf6+ 
{[%clk 01:40:24] [%emt 00:00:10]} 13...gxf6 {[%clk 01:45:52] [%emt 00:00:05]} 
14.Nxe4 {[%clk 01:40:47] [%emt 00:00:06]} 14...f5 {[%clk 01:46:19] [%emt
00:00:04]} 15.Ng3 {[%clk 01:37:53] [%emt 00:03:23]} 15...h5 {[%clk 01:46:02]
[%emt 00:00:47]} 16.Bb5 {[%clk 01:18:47] [%emt 00:19:36]} 16...Kf6 {[%clk
01:38:22] [%emt 00:08:10]} 17.Kb1 {[%clk 01:11:53] [%emt 00:07:24]} 17...Bc5 
{[%clk 01:28:43] [%emt 00:10:10]} 18.f4 {[%clk 01:07:52] [%emt 00:04:30]} 
18...Nc6 {[%clk 01:22:55] [%emt 00:06:18]} 19.Ne2 {[%clk 00:54:22] [%emt
00:14:00]} 19...Rag8 {[%clk 01:18:50] [%emt 00:04:34]} 20.g3 {[%clk 00:51:42]
[%emt 00:03:11]} 20...h4 {[%clk 01:19:11] [%emt 00:00:09]} 21.a3 {[%clk
00:37:37] [%emt 00:14:35]} 21...Nd8 {[%clk 01:03:40] [%emt 00:16:01]} 22.Rhf1 
{[%clk 00:31:14] [%emt 00:06:52]} 22...Nf7 {[%clk 01:01:00] [%emt 00:03:11]} 
23.Rd7 {[%clk 00:27:27] [%emt 00:04:16]} 23...Rd8 {[%clk 01:00:00] [%emt
00:01:30]} 24.Rc1 {[%clk 00:23:08] [%emt 00:04:50]} 24...Bb6 {[%clk 00:56:04]
[%emt 00:04:26]} 25.Rcd1 {[%clk 00:22:24] [%emt 00:01:14]} 25...Nh6 {[%clk
00:35:26] [%emt 00:21:08]} 26.Rxd8 {[%clk 00:19:12] [%emt 00:03:42]} 26...Bxd8 
{[%clk 00:35:27] [%emt 00:00:29]} 27.Bc4 {[%clk 00:10:41] [%emt 00:09:01]} 
27...Bb6 {[%clk 00:30:38] [%emt 00:05:19]} 28.Rd6 {[%clk 00:09:26] [%emt
00:01:46]} 28...Re8 {[%clk 00:31:03] [%emt 00:00:04]} 29.Nd4 {[%clk 00:08:40]
[%emt 00:01:16]} 29...Nf7 {[%clk 00:25:54] [%emt 00:05:39]} 30.Rxe6+ {[%clk
00:06:25] [%emt 00:02:45]} 30...Rxe6 {[%clk 00:26:18] [%emt 00:00:06]} 31.Nxe6 
{[%clk 00:06:51] [%emt 00:00:03]} 31...Nd6 {[%clk 00:26:30] [%emt 00:00:19]} 
32.Bd5 {[%clk 00:05:27] [%emt 00:01:54]} 32...hxg3 {[%clk 00:26:54] [%emt
00:00:06]} 33.hxg3 {[%clk 00:05:53] [%emt 00:00:03]} 33...Bf2 {[%clk 00:27:18]
[%emt 00:00:06]} 1/2-1/2

[Event "FIDE Grand Swiss 2023"]
[Site "Villa Marina, Douglas, Isle of Man"]
[Date "2023.10.30"]
[Round "6.13"]
[White "Abdusattorov, Nodirbek"]
[Black "Aravindh, Chithambaram Vr."]
[Result "1/2-1/2"]
[WhiteElo "2716"]
[BlackElo "2649"]
[EventDate "2023.10.25"]
[ECO "D37"]
[PlyCount "86"]
[BlackFideId "5072786"]
[TimeControl "40/100 + 20/50 + 15 + 30s/move"]
[WhiteFideId "14204118"]

1.d4 {[%clk 01:40:46] [%emt 00:00:13]} 1...Nf6 {[%clk 01:40:40] [%emt 00:00:19]} 
2.c4 {[%clk 01:41:06] [%emt 00:00:10]} 2...e6 {[%clk 01:40:57] [%emt 00:00:14]} 
3.Nf3 {[%clk 01:41:12] [%emt 00:00:23]} 3...d5 {[%clk 01:39:03] [%emt 00:02:24]} 
4.Nc3 {[%clk 01:41:28] [%emt 00:00:14]} 4...Be7 {[%clk 01:38:39] [%emt
00:00:54]} 5.Bf4 {[%clk 01:41:48] [%emt 00:00:10]} 5...O-O {[%clk 01:39:01]
[%emt 00:00:08]} 6.e3 {[%clk 01:42:12] [%emt 00:00:07]} 6...Nbd7 {[%clk
01:38:29] [%emt 00:01:02]} 7.c5 {[%clk 01:31:37] [%emt 00:11:05]} 7...c6 {[%clk
01:38:19] [%emt 00:00:39]} 8.Bd3 {[%clk 01:29:13] [%emt 00:02:55]} 8...b6 
{[%clk 01:38:31] [%emt 00:00:18]} 9.b4 {[%clk 01:29:24] [%emt 00:00:18]} 9...a5 
{[%clk 01:38:53] [%emt 00:00:09]} 10.a3 {[%clk 01:29:25] [%emt 00:00:29]} 
10...Ba6 {[%clk 01:38:58] [%emt 00:00:24]} 11.O-O {[%clk 01:28:56] [%emt
00:01:00]} 11...Qc8 {[%clk 01:37:53] [%emt 00:01:35]} 12.Rb1 {[%clk 01:19:53]
[%emt 00:09:33]} 12...Bxd3 {[%clk 01:30:34] [%emt 00:07:48]} 13.Qxd3 {[%clk
01:20:22] [%emt 00:00:02]} 13...Qb7 {[%clk 01:30:34] [%emt 00:00:30]} 14.Rfc1 
{[%clk 01:17:19] [%emt 00:03:33]} 14...Rfc8 {[%clk 01:30:23] [%emt 00:00:40]} 
15.h3 {[%clk 01:11:51] [%emt 00:05:59]} 15...h6 {[%clk 01:29:51] [%emt
00:01:02]} 16.Ne1 {[%clk 01:11:17] [%emt 00:01:04]} 16...Bd8 {[%clk 01:26:30]
[%emt 00:03:51]} 17.Qc2 {[%clk 01:08:15] [%emt 00:03:31]} 17...axb4 {[%clk
01:14:15] [%emt 00:12:47]} 18.axb4 {[%clk 01:08:43] [%emt 00:00:02]} 18...Bc7 
{[%clk 01:14:37] [%emt 00:00:07]} 19.Nd3 {[%clk 01:08:08] [%emt 00:01:05]} 
19...b5 {[%clk 01:08:42] [%emt 00:06:25]} 20.Ra1 {[%clk 01:04:45] [%emt
00:03:53]} 20...Ne4 {[%clk 01:05:47] [%emt 00:03:24]} 21.Ne2 {[%clk 00:57:04]
[%emt 00:08:11]} 21...Bxf4 {[%clk 00:58:24] [%emt 00:07:53]} 22.exf4 {[%clk
00:56:19] [%emt 00:01:16]} 22...Ra6 {[%clk 00:58:49] [%emt 00:00:04]} 23.Rxa6 
{[%clk 00:55:09] [%emt 00:01:41]} 23...Qxa6 {[%clk 00:55:49] [%emt 00:03:29]} 
24.f3 {[%clk 00:53:59] [%emt 00:01:41]} 24...Nef6 {[%clk 00:56:04] [%emt
00:00:15]} 25.Nc3 {[%clk 00:54:00] [%emt 00:00:28]} 25...Ra8 {[%clk 00:56:13]
[%emt 00:00:21]} 26.g4 {[%clk 00:54:17] [%emt 00:00:13]} 26...Qb7 {[%clk
00:55:40] [%emt 00:01:04]} 27.Qb2 {[%clk 00:49:41] [%emt 00:05:06]} 27...Ne8 
{[%clk 00:48:34] [%emt 00:07:35]} 28.Re1 {[%clk 00:44:45] [%emt 00:05:27]} 
28...Nc7 {[%clk 00:48:53] [%emt 00:00:10]} 29.h4 {[%clk 00:44:39] [%emt
00:00:36]} 29...Qc8 {[%clk 00:47:51] [%emt 00:01:32]} 30.h5 {[%clk 00:43:06]
[%emt 00:02:03]} 30...Qd8 {[%clk 00:48:07] [%emt 00:00:15]} 31.Kg2 {[%clk
00:40:47] [%emt 00:02:48]} 31...Qf6 {[%clk 00:43:49] [%emt 00:04:48]} 32.Ne2 
{[%clk 00:39:49] [%emt 00:01:29]} 32...Qd8 {[%clk 00:39:23] [%emt 00:04:55]} 
33.Kh3 {[%clk 00:38:09] [%emt 00:02:11]} 33...Ra6 {[%clk 00:38:40] [%emt
00:01:12]} 34.Rg1 {[%clk 00:34:25] [%emt 00:04:14]} 34...Qa8 {[%clk 00:33:13]
[%emt 00:05:58]} 35.Nc3 {[%clk 00:33:10] [%emt 00:01:45]} 35...Qe8 {[%clk
00:14:45] [%emt 00:18:58]} 36.Nc1 {[%clk 00:32:15] [%emt 00:01:25]} 36...f6 
{[%clk 00:10:00] [%emt 00:05:15]} 37.Nd3 {[%clk 00:23:37] [%emt 00:09:08]} 
37...e5 {[%clk 00:08:03] [%emt 00:02:26]} 38.dxe5 {[%clk 00:21:36] [%emt
00:02:31]} 38...fxe5 {[%clk 00:08:29] [%emt 00:00:04]} 39.fxe5 {[%clk 00:22:03]
[%emt 00:00:03]} 39...d4 {[%clk 00:07:13] [%emt 00:01:47]} 40.Ne4 {[%clk
00:18:56] [%emt 00:03:37]} 40...Nxe5 {[%clk 00:02:04] [%emt 00:05:39]} 41.Nd6 
{[%clk 00:07:48] [%emt 00:11:37]} 41...Nxd3 {[%clk 00:40:47] [%emt 00:11:47]} 
42.Qb3+ {[%clk 00:58:11] [%emt 00:00:07]} 42...Qe6 {[%clk 00:41:12] [%emt
00:00:05]} 43.Qxd3 {[%clk 00:58:38] [%emt 00:00:04]} 43...Qe3 {[%clk 00:32:16]
[%emt 00:09:26]} 1/2-1/2

[Event "FIDE Grand Swiss 2023"]
[Site "Villa Marina, Douglas, Isle of Man"]
[Date "2023.10.30"]
[Round "6.14"]
[White "Vitiugov, Nikita"]
[Black "Melkumyan, Hrant"]
[Result "1/2-1/2"]
[WhiteElo "2711"]
[BlackElo "2650"]
[EventDate "2023.10.25"]
[ECO "C65"]
[PlyCount "60"]
[BlackFideId "13302485"]
[TimeControl "40/100 + 20/50 + 15 + 30s/move"]
[WhiteFideId "4152956"]

1.e4 {[%clk 01:40:46] [%emt 00:00:13]} 1...e5 {[%clk 01:40:43] [%emt 00:00:17]} 
2.Nf3 {[%clk 01:41:09] [%emt 00:00:07]} 2...Nc6 {[%clk 01:41:06] [%emt
00:00:07]} 3.Bb5 {[%clk 01:41:27] [%emt 00:00:13]} 3...Nf6 {[%clk 01:41:19]
[%emt 00:00:16]} 4.d3 {[%clk 01:40:59] [%emt 00:00:58]} 4...d6 {[%clk 01:40:11]
[%emt 00:01:39]} 5.O-O {[%clk 01:39:47] [%emt 00:01:41]} 5...Be7 {[%clk
01:40:02] [%emt 00:00:39]} 6.Re1 {[%clk 01:37:07] [%emt 00:03:11]} 6...O-O 
{[%clk 01:34:53] [%emt 00:05:38]} 7.h3 {[%clk 01:34:30] [%emt 00:03:08]} 7...a6 
{[%clk 01:32:54] [%emt 00:02:29]} 8.Bxc6 {[%clk 01:34:25] [%emt 00:00:34]} 
8...bxc6 {[%clk 01:33:14] [%emt 00:00:09]} 9.d4 {[%clk 01:34:51] [%emt
00:00:05]} 9...Nd7 {[%clk 01:33:18] [%emt 00:00:26]} 10.c4 {[%clk 01:21:05]
[%emt 00:14:18]} 10...exd4 {[%clk 01:30:00] [%emt 00:03:46]} 11.Nxd4 {[%clk
01:20:00] [%emt 00:01:35]} 11...Ne5 {[%clk 01:29:52] [%emt 00:00:38]} 12.Bf4 
{[%clk 01:15:38] [%emt 00:04:53]} 12...Bd7 {[%clk 01:23:39] [%emt 00:06:42]} 
13.Qc2 {[%clk 01:07:32] [%emt 00:08:37]} 13...Bf6 {[%clk 01:20:13] [%emt
00:03:55]} 14.Nd2 {[%clk 00:51:28] [%emt 00:16:35]} 14...c5 {[%clk 01:13:13]
[%emt 00:07:28]} 15.N4f3 {[%clk 00:50:43] [%emt 00:01:15]} 15...Re8 {[%clk
01:09:15] [%emt 00:04:28]} 16.Rad1 {[%clk 00:44:24] [%emt 00:06:51]} 16...Bc6 
{[%clk 01:05:50] [%emt 00:03:54]} 17.Re3 {[%clk 00:43:28] [%emt 00:01:26]} 
17...a5 {[%clk 01:02:49] [%emt 00:03:30]} 18.a4 {[%clk 00:39:35] [%emt
00:04:24]} 18...Qb8 {[%clk 00:53:15] [%emt 00:10:04]} 19.b3 {[%clk 00:37:49]
[%emt 00:02:17]} 19...Qb7 {[%clk 00:38:11] [%emt 00:15:34]} 20.Bxe5 {[%clk
00:30:55] [%emt 00:07:23]} 20...Bxe5 {[%clk 00:38:32] [%emt 00:00:08]} 21.Nxe5 
{[%clk 00:30:45] [%emt 00:00:41]} 21...Rxe5 {[%clk 00:38:54] [%emt 00:00:08]} 
22.Rde1 {[%emt 00:01:40]} 22...Qb4 {[%clk 00:37:00] [%emt 00:01:54]} 23.Nf3 
{[%clk 00:27:15] [%emt 00:03:20]} 23...Re7 {[%clk 00:32:56] [%emt 00:04:33]} 
24.R1e2 {[%clk 00:24:08] [%emt 00:03:38]} 24...Rae8 {[%clk 00:31:32] [%emt
00:01:52]} 25.Kh2 {[%clk 00:21:51] [%emt 00:02:49]} 25...f6 {[%clk 00:29:20]
[%emt 00:02:42]} 26.Nd2 {[%clk 00:21:02] [%emt 00:01:19]} 26...Rb8 {[%clk
00:27:02] [%emt 00:02:49]} 27.Nf3 {[%clk 00:19:43] [%emt 00:01:48]} 27...Rbe8 
{[%emt 00:00:13]} 28.Nd2 {[%clk 00:18:32] [%emt 00:01:36]} 28...Rb8 {[%clk
00:27:44] [%emt 00:00:10]} 29.Nf3 {[%clk 00:18:48] [%emt 00:00:15]} 29...Rbe8 
{[%clk 00:28:08] [%emt 00:00:05]} 30.Nd2 {[%clk 00:19:10] [%emt 00:00:09]} 
30...Rb8 {[%emt 00:00:07]} 1/2-1/2